bitfinex/quotes_SOLUSD_20251206
["timestamp","ask_amount","ask_price","bid_price","bid_amount"]
[1765062947792,0.48,131.84,131.81,14.33171495]
[1765062948504,7.58477974,131.85,131.81,14.33171495]
[1765062948708,8.06477974,131.85,131.81,14.33171495]
[1765062950007,8.06477974,131.85,131.81,9.48994492]
[1765062951201,8.06477974,131.85,131.81,14.33171495]
[1765062951712,8.06477974,131.85,131.82,0.7]
[1765062952114,0.48,131.84,131.79,0.7]
[1765062952316,0.48,131.84,131.8,21.85063403]
[1765062952731,0.48,131.84,131.81,0.7]
[1765062952924,0.48,131.84,131.81,5.54177003]
[1765062954212,8.06535773,131.84,131.81,5.54177003]
[1765062954530,8.06535773,131.84,131.81,3.79422973]
[1765062955337,8.06535773,131.84,131.81,0.7]
[1765062955525,8.06535773,131.84,131.8,19.40309373]
[1765062955829,8.06535773,131.84,131.8,20.08309373]
[1765062956214,8.06535773,131.84,131.8,16.988864]
[1765062956414,7.58535773,131.84,131.8,16.988864]
[1765062956614,8.06582643,131.83,131.8,16.988864]
[1765062958637,7.58495145,131.84,131.81,9.48994492]
[1765062959020,7.58495145,131.84,131.82,0.68]
[1765062959718,7.58495145,131.84,131.81,9.48994492]
[1765062960652,7.58495145,131.84,131.8,16.308864]
[1765062960822,3.09422973,131.82,131.77,9.48994492]
[1765062961026,3.09422973,131.8,131.75,17.668864]
[1765062961232,3.09422973,131.79,131.75,0.68]
[1765062961423,3.57422973,131.79,131.75,0.68]
[1765062961622,7.58840491,131.78,131.75,0.68]
[1765062966140,0.48,131.77,131.73,20.08309373]
[1765062966342,0.48,131.77,131.74,0.68]
[1765062966525,10.68263464,131.78,131.74,0.68]
[1765062966526,30.13364693,131.78,131.74,0.68]
[1765062967139,3.09422973,131.76,131.72,8.80994492]
[1765062967426,0.48,131.77,131.73,0.68]
[1765062968140,7.58955676,131.76,131.73,0.68]
[1765062972154,7.58955676,131.76,131.74,3.09422973]
[1765062972353,7.58955676,131.76,131.73,3.09422973]
[1765062972535,7.58838274,131.79,131.76,25.11880892]
[1765062972740,7.58838274,131.79,131.78,3.09422973]
[1765062972948,7.58667779,131.81,131.78,11.90417465]
[1765062973253,7.58667779,131.81,131.79,0.68]
[1765062973668,7.58619775,131.82,131.8,3.09422973]
[1765062973967,7.58572495,131.83,131.81,3.09422973]
[1765062974132,26.54787735,131.84,131.81,3.77422973]
[1765062974951,27.02787735,131.84,131.81,3.77422973]
[1765062975254,26.54787735,131.84,131.81,0.68]
[1765062975676,27.02787735,131.84,131.81,0.68]
[1765062976029,26.54787735,131.84,131.81,0.68]
[1765062976247,26.54787735,131.84,131.81,3.77422973]
[1765062977366,26.54787735,131.84,131.81,0.68]
[1765062977572,27.02787735,131.84,131.81,0.68]
[1765062977860,26.54787735,131.84,131.81,0.68]
[1765062978042,7.58495145,131.84,131.81,0.68]
[1765062978663,8.06495145,131.84,131.8,0.68]
[1765062978837,7.58495145,131.84,131.81,0.68]
[1765062979038,8.06495145,131.84,131.81,0.68]
[1765062980450,11.15918118,131.84,131.8,0.7]
[1765062980639,8.06495145,131.84,131.8,0.7]
[1765062980843,7.58495145,131.84,131.8,12.60417465]
[1765062981044,7.58495145,131.84,131.81,0.7]
[1765062981571,8.06495145,131.84,131.81,0.7]
[1765062983949,7.58495145,131.84,131.81,0.7]
[1765062984647,8.06495145,131.84,131.81,0.7]
[1765062985256,7.58495145,131.84,131.81,0.7]
[1765062985457,7.58495145,131.84,131.81,3.79422973]
[1765062985849,7.58495145,131.84,131.82,0.7]
[1765062986673,104.3,131.87,131.82,3.79422973]
[1765062986848,7.58397623,131.86,131.82,3.79422973]
[1765062987048,7.58397623,131.86,131.83,0.7]
[1765062987470,8.06397623,131.86,131.83,0.7]
[1765062987676,7.58397623,131.86,131.83,0.7]
[1765062987863,8.06397623,131.86,131.83,0.7]
[1765062988249,7.58397623,131.86,131.83,0.7]
[1765062988455,8.06397623,131.86,131.83,0.7]
[1765062990249,7.58397623,131.86,131.83,0.7]
[1765062993978,8.38,131.87,131.84,8.80994492]
[1765062994173,7.78289557,131.88,131.84,11.90417465]
[1765062994365,7.78289557,131.88,131.85,0.7]
[1765062997954,10.8771253,131.88,131.85,0.7]
[1765063005485,3.09422973,131.87,131.81,7.58619412]
[1765063005684,3.09422973,131.86,131.82,8.80994492]
[1765063005887,3.57422973,131.86,131.82,9.50994492]
[1765063006086,3.09422973,131.86,131.83,0.7]
[1765063006789,7.58437618,131.85,131.83,0.7]
[1765063009099,11.15860591,131.85,131.82,0.7]
[1765063009301,7.58437618,131.85,131.82,0.7]
[1765063009865,27.32030661,131.86,131.82,3.79422973]
[1765063009866,15.9440312,131.86,131.82,3.79422973]
[1765063010098,15.9440312,131.86,131.83,0.7]
[1765063010671,15.9440312,131.86,131.83,8.28551758]
[1765063010986,15.9440312,131.86,131.83,0.7]
[1765063011185,15.9440312,131.86,131.84,0.69]
[1765063011890,7.5840312,131.86,131.84,0.69]
[1765063012098,0.2,131.88,131.85,11.90417465]
[1765063012305,0.2,131.88,131.84,9.05]
[1765063012306,0.2,131.88,131.87,11.90417465]
[1765063012793,0.2,131.88,131.87,20.98417465]
[1765063012977,0.2,131.88,131.87,28.56740055]
[1765063016498,0.2,131.88,131.87,30.30073103]
[1765063018201,0.2,131.88,131.87,21.94073103]
[1765063018381,0.2,131.88,131.87,30.30073103]
[1765063020402,0.2,131.88,131.87,21.94073103]
[1765063020604,0.2,131.88,131.87,30.30073103]
[1765063021207,0.2,131.88,131.87,17.11317082]
[1765063021383,0.2,131.88,131.87,46.60959503]
[1765063021785,0.2,131.88,131.87,22.71750513]
[1765063022279,0.2,131.88,131.87,25.47317082]
[1765063022483,0.2,131.88,131.87,30.30073103]
[1765063027209,0.2,131.88,131.87,35.12829124]
[1765063027607,0.2,131.91,131.9,25.11880892]
[1765063027787,0.2,131.91,131.9,38.30636913]
[1765063027996,0.2,131.91,131.9,39.02636913]
[1765063028516,0.2,131.91,131.9,25.83880892]
[1765063031119,0.2,131.91,131.88,13.13003288]
[1765063031294,0.2,131.91,131.89,8.80994492]
[1765063032022,7.78093996,131.91,131.87,7.58319233]
[1765063032225,0.48,131.9,131.88,8.80994492]
[1765063032417,0.2,131.91,131.89,4.82756021]
[1765063032602,0.2,131.91,131.9,7.58150113]
[1765063032808,0.2,131.91,131.9,17.11144605]
[1765063035600,0.2,131.91,131.9,9.52994492]
[1765063036796,0.2,131.91,131.89,17.16994492]
[1765063037018,0.2,131.91,131.89,17.88994492]
[1765063037315,0.2,131.91,131.89,8.80994492]
[1765063037517,0.68,131.91,131.89,17.16994492]
[1765063038116,0.2,131.91,131.89,17.16994492]
[1765063039312,0.2,131.91,131.89,17.88994492]
[1765063040798,0.2,131.91,131.89,17.16994492]
[1765063040999,0.2,131.91,131.9,5.52756021]
[1765063041206,0.2,131.91,131.9,30.64636913]
[1765063041620,0.2,131.95,131.91,8.80994492]
[1765063041814,0.2,131.95,131.94,13.63750513]
[1765063042323,0.2,131.95,131.94,14.33750513]
[1765063042930,0.2,131.95,131.94,13.63750513]
[1765063043919,0.2,131.95,131.94,8.80994492]
[1765063044432,0.88,131.95,131.94,8.80994492]
[1765063049636,0.2,131.95,131.94,8.80994492]
[1765063050633,0.2,131.95,131.93,4.82756021]
[1765063050841,7.77863758,131.95,131.93,13.63750513]
[1765063051024,7.77863758,131.95,131.93,14.33750513]
[1765063053027,7.77863758,131.95,131.93,9.50994492]
[1765063053236,7.77863758,131.95,131.93,14.33750513]
[1765063055135,0.2,131.95,131.93,14.33750513]
[1765063056247,0.2,131.95,131.94,14.33750513]
[1765063057146,0.2,131.95,131.94,21.91670779]
[1765063060045,0.2,131.95,131.94,14.33750513]
[1765063061552,0.2,131.95,131.94,9.50994492]
[1765063063947,0.88,131.95,131.91,4.82756021]
[1765063064140,8.45862826,131.95,131.92,8.80994492]
[1765063064451,8.45862826,131.95,131.9,12.40891281]
[1765063064452,0.68,131.94,131.91,8.80994492]
[1765063064825,0.68,131.94,131.91,9.50994492]
[1765063065022,0.68,131.94,131.91,8.80994492]
[1765063065457,0.68,131.94,131.91,9.50994492]
[1765063066932,8.25922348,131.94,131.91,9.50994492]
[1765063067935,12.40678369,131.94,131.9,0.7]
[1765063068261,4.82756021,131.92,131.9,8.80994492]
[1765063068456,4.82756021,131.91,131.88,8.80994492]
[1765063068865,0.68,131.9,131.88,8.80994492]
[1765063069766,5.50756021,131.91,131.88,8.80994492]
[1765063070064,7.58150113,131.9,131.88,8.80994492]
[1765063070261,7.58150113,131.9,131.88,9.46994492]
[1765063072948,7.57972194,131.94,131.9,8.80994492]
[1765063073348,7.57972194,131.94,131.91,0.66]
[1765063073558,5.50756021,131.93,131.88,9.46994492]
[1765063073739,0.68,131.92,131.89,17.16994492]
[1765063074053,5.50756021,131.92,131.89,17.82994492]
[1765063074663,7.58092638,131.91,131.89,17.82994492]
[1765063078174,7.58035172,131.92,131.89,17.82994492]
[1765063078370,7.58035172,131.92,131.9,0.71]
[1765063087794,3.77031784,131.91,131.88,8.80994492]
[1765063087967,3.77031784,131.91,131.88,9.51994492]
[1765063089890,7.58150113,131.9,131.88,9.51994492]
[1765063092088,26.52720932,131.94,131.88,8.80994492]
[1765063092282,0.68,131.92,131.88,9.51994492]
[1765063093319,7.58092638,131.91,131.89,0.71]
[1765063093495,7.58092638,131.91,131.88,9.51994492]
[1765063093792,8.26092638,131.91,131.88,9.51994492]
[1765063096184,7.58185876,131.9,131.88,0.71]
[1765063103706,3.75031784,131.89,131.86,8.80994492]
[1765063103884,3.09031784,131.88,131.86,8.80994492]
[1765063104085,3.75031784,131.88,131.86,8.80994492]
[1765063104600,0.66,131.88,131.86,8.80994492]
[1765063104805,34.8956116,131.9,131.86,0.7]
[1765063104806,3.75031784,131.89,131.86,0.7]
[1765063105594,7.58265089,131.88,131.85,9.50994492]
[1765063105795,11.33296873,131.88,131.85,9.50994492]
[1765063105995,8.24265089,131.88,131.85,9.50994492]
[1765063106299,11.33296873,131.88,131.85,9.50994492]
[1765063106694,10.67296873,131.88,131.86,0.7]
[1765063107216,7.58265089,131.88,131.86,0.7]
[1765063107510,7.58219054,131.89,131.86,0.7]
[1765063109187,7.58219054,131.89,131.84,8.80994492]
[1765063109188,3.09031784,131.88,131.84,8.80994492]
[1765063109390,3.09031784,131.88,131.85,0.7]
[1765063109391,3.09031784,131.87,131.85,0.7]
[1765063109809,3.75031784,131.88,131.85,0.7]
[1765063110015,29.62769831,131.89,131.85,0.7]
[1765063110514,30.28769831,131.89,131.85,0.7]
[1765063112807,7.5832259,131.87,131.85,0.7]
[1765063113415,3.75031784,131.86,131.83,9.06]
[1765063113611,3.09031784,131.85,131.83,9.06]
[1765063113815,3.09031784,131.85,131.81,25.11880892]
[1765063113996,3.09031784,131.85,131.83,8.80994492]
[1765063114399,3.09031784,131.85,131.83,0.7]
[1765063114715,7.58495145,131.84,131.83,0.7]
[1765063117194,7.58495145,131.84,131.82,8.80994492]
[1765063117396,7.58495145,131.84,131.82,9.50994492]
[1765063122430,10.67469402,131.85,131.83,0.7]
[1765063123436,7.58437618,131.85,131.83,0.7]
[1765063123635,10.67469402,131.85,131.83,0.7]
[1765063125509,10.67469402,131.85,131.82,9.50994492]
[1765063127217,3.09031784,131.84,131.82,9.50994492]
[1765063127528,10.67566391,131.84,131.82,9.50994492]
[1765063128728,10.67566391,131.84,131.83,0.7]
[1765063130713,10.67566391,131.84,131.82,8.80994492]
[1765063131013,10.67566391,131.84,131.82,9.51994492]
[1765063132135,10.67566391,131.84,131.82,8.80994492]
[1765063132320,10.67566391,131.84,131.83,0.71]
[1765063138863,10.67566391,131.84,131.81,8.80994492]
[1765063139067,10.67566391,131.84,131.82,0.67]
[1765063140366,4.83560417,131.84,131.82,0.67]
[1765063140760,26.54531664,131.85,131.82,0.67]
[1765063141067,4.83560417,131.84,131.82,0.67]
[1765063141765,12.41998035,131.85,131.82,0.67]
[1765063142080,4.83560417,131.88,131.83,17.16994492]
[1765063142369,12.41825506,131.88,131.84,0.67]
[1765063142661,31.37488229,131.88,131.84,0.67]
[1765063143049,32.04488229,131.88,131.84,0.67]
[1765063143250,4.83560417,131.87,131.84,0.67]
[1765063145368,12.41928479,131.87,131.84,0.67]
[1765063146360,4.83560417,131.86,131.84,0.67]
[1765063149675,12.41982905,131.86,131.84,0.67]
[1765063150180,5.50560417,131.85,131.8,0.67]
[1765063150378,4.83560417,131.83,131.81,9.47994492]
[1765063151287,4.83560417,131.83,131.81,0.67]
[1765063151476,4.83560417,131.82,131.8,9.47994492]
[1765063151867,4.83560417,131.82,131.8,8.80994492]
[1765063152074,12.42180087,131.82,131.8,9.47994492]
[1765063152487,7.5861967,131.82,131.8,9.47994492]
[1765063152689,7.5861967,131.82,131.81,0.67]
[1765063156072,18.96201827,131.85,131.81,9.47994492]
[1765063156278,4.83560417,131.84,131.81,9.47994492]
[1765063156578,4.83560417,131.84,131.82,0.67]
[1765063157791,12.42078429,131.84,131.82,0.67]
[1765063163607,12.42113098,131.83,131.82,0.67]
[1765063165437,13.10113098,131.83,131.81,8.80994492]
[1765063165734,12.42113098,131.83,131.81,9.46994492]
[1765063165918,12.42113098,131.83,131.81,8.80994492]
[1765063166118,12.42113098,131.83,131.82,0.66]
[1765063167830,7.58552681,131.83,131.82,0.66]
[1765063168148,7.58495145,131.84,131.82,0.66]
[1765063170843,26.54639445,131.85,131.82,0.66]
[1765063171343,7.58437618,131.85,131.82,0.66]
[1765063172734,7.583801,131.86,131.82,0.66]
[1765063178427,24.4744079,131.87,131.83,13.64554909]
[1765063178428,7.58340191,131.87,131.83,13.64554909]
[1765063178629,7.58340191,131.87,131.84,8.36]
[1765063178945,7.58340191,131.87,131.84,9.02]
[1765063179139,7.58340191,131.87,131.85,0.66]
[1765063179450,7.58265089,131.88,131.85,0.66]
[1765063180044,8.26265089,131.88,131.85,0.66]
[1765063180239,13.09825506,131.88,131.85,0.66]
[1765063180552,12.41825506,131.88,131.85,0.66]
[1765063180842,13.09825506,131.88,131.85,0.66]
[1765063183126,12.41825506,131.88,131.85,0.66]
[1765063184454,13.09825506,131.88,131.85,0.66]
[1765063185637,7.58265089,131.88,131.85,0.66]
[1765063187742,8.26265089,131.88,131.85,0.66]
[1765063190839,13.09825506,131.88,131.85,0.66]
[1765063193046,12.41825506,131.88,131.85,0.66]
[1765063193355,13.09825506,131.88,131.85,0.66]
[1765063198459,12.41825506,131.88,131.85,0.66]
[1765063198872,13.09825506,131.88,131.85,0.66]
[1765063199772,7.58265089,131.88,131.85,0.66]
[1765063200472,7.58200561,131.9,131.86,13.64554909]
[1765063201079,7.58200561,131.9,131.87,0.66]
[1765063208196,21.22909616,131.93,131.88,8.80994492]
[1765063208483,21.22909616,131.93,131.87,32.91174444]
[1765063208484,3.09178663,131.9,131.87,0.66]
[1765063208791,3.09178663,131.91,131.88,0.66]
[1765063208975,3.77178663,131.91,131.88,0.66]
[1765063210673,11.35295374,131.91,131.88,0.66]
[1765063211187,8.26116711,131.91,131.88,0.66]
[1765063212606,3.09178663,131.89,131.84,8.24440618]
[1765063212773,3.09178663,131.88,131.84,8.24440618]
[1765063213089,3.09178663,131.88,131.84,7.58440618]
[1765063213272,3.09178663,131.88,131.85,0.66]
[1765063213273,3.77178663,131.88,131.85,0.66]
[1765063213692,11.35493476,131.88,131.85,0.66]
[1765063215905,3.77178663,131.87,131.84,9.46994492]
[1765063216095,3.77178663,131.87,131.83,0.66]
[1765063216096,3.09178663,131.86,131.83,0.66]
[1765063216275,3.77178663,131.86,131.83,0.66]
[1765063218279,7.58437618,131.85,131.83,0.66]
[1765063218480,8.26437618,131.85,131.82,0.66]
[1765063219816,3.09178663,131.83,131.79,7.58761237]
[1765063220023,3.77178663,131.84,131.8,9.46994492]
[1765063220512,11.35731344,131.83,131.8,0.72]
[1765063221177,10.67731344,131.83,131.8,0.72]
[1765063224607,11.35731344,131.83,131.8,0.72]
[1765063226711,10.67731344,131.83,131.8,0.72]
[1765063227117,7.58552681,131.83,131.8,0.72]
[1765063227615,10.67731344,131.83,131.8,0.72]
[1765063231011,11.35795851,131.82,131.79,8.80994492]
[1765063231217,11.35795851,131.82,131.79,9.52994492]
[1765063231518,7.58617188,131.82,131.8,0.72]
[1765063237712,10.67795851,131.82,131.8,0.72]
[1765063239122,7.58617188,131.82,131.8,0.72]
[1765063239832,3.09178663,131.82,131.79,16.39771556]
[1765063240118,7.58552681,131.83,131.77,0.1]
[1765063240119,3.09178663,131.8,131.77,0.1]
[1765063240296,3.09178663,131.78,131.77,0.1]
[1765063240931,11.55178663,131.78,131.77,0.1]
[1765063241294,12.23178663,131.78,131.77,0.1]
[1765063241804,20.59178663,131.78,131.77,0.1]
[1765063242008,28.18019154,131.78,131.77,0.1]
[1765063244720,16.04840491,131.78,131.77,0.1]
[1765063244901,19.14019154,131.78,131.77,0.1]
[1765063245217,3.09178663,131.8,131.77,0.1]
[1765063245394,6.13003052,131.78,131.77,0.1]
[1765063246698,13.71843543,131.78,131.77,0.1]
[1765063248821,10.6266488,131.78,131.77,0.1]
[1765063251110,10.6266488,131.78,131.77,0.76]
[1765063251412,3.09178663,131.79,131.77,0.76]
[1765063251413,7.58803086,131.79,131.77,0.76]
[1765063252427,19.58976241,131.79,131.77,0.76]
[1765063256028,19.03926791,131.8,131.77,0.76]
[1765063256202,39.40099946,131.8,131.77,0.76]
[1765063256632,36.30921283,131.8,131.77,0.76]
[1765063256927,19.03926791,131.8,131.77,0.76]
[1765063257532,26.62877514,131.8,131.77,0.76]
[1765063260627,23.53698851,131.8,131.77,0.76]
[1765063260832,26.62877514,131.8,131.77,0.76]
[1765063261312,19.03926791,131.8,131.77,0.76]
[1765063262030,38.07853582,131.8,131.77,0.76]
[1765063262234,19.03926791,131.8,131.77,0.76]
[1765063263526,26.62846288,131.8,131.77,0.76]
[1765063263914,19.03926791,131.8,131.77,0.76]
[1765063264416,20.78604997,131.8,131.77,0.76]
[1765063265252,4.83856869,131.78,131.77,0.1]
[1765063265542,13.19856869,131.78,131.77,0.1]
[1765063265716,13.87856869,131.78,131.77,0.1]
[1765063265954,16.9172742,131.78,131.77,0.1]
[1765063267014,24.50567911,131.78,131.77,0.1]
[1765063270450,24.50567911,131.78,131.74,0.1]
[1765063270658,9.67713738,131.74,131.7,0.1]
[1765063270951,4.83856869,131.71,131.7,0.1]
[1765063271116,13.19856869,131.71,131.7,0.1]
[1765063271312,13.77856869,131.71,131.7,0.1]
[1765063271819,13.19856869,131.71,131.7,0.1]
[1765063272019,13.19856869,131.71,131.7,0.82]
[1765063272350,13.19856869,131.71,131.7,0.1]
[1765063272543,8.36,131.71,131.7,0.82]
[1765063272849,12.4305689,131.72,131.7,0.82]
[1765063273349,4.83856869,131.71,131.7,0.82]
[1765063273945,7.59200021,131.72,131.7,0.82]
[1765063274244,17.26994492,131.73,131.7,0.82]
[1765063274540,22.10851361,131.73,131.7,0.82]
[1765063274750,17.26994492,131.73,131.7,0.82]
[1765063275048,21.14743269,131.71,131.69,0.1]
[1765063275350,13.77856869,131.7,131.69,0.1]
[1765063276043,16.81912207,131.7,131.69,0.1]
[1765063276347,16.81912207,131.7,131.68,0.1]
[1765063276641,13.01215969,131.69,131.68,0.1]
[1765063277632,8.173591,131.69,131.68,1e-08]
[1765063277838,13.01215969,131.69,131.68,1e-08]
[1765063278040,34.15959238,131.69,131.59,3.04101569]
[1765063278219,9.67713738,131.6,131.59,3.04101569]
[1765063278425,25.65592157,131.6,131.56,0.1]
[1765063278641,4.83856869,131.57,131.56,0.1]
[1765063278825,13.21856869,131.57,131.56,0.1]
[1765063279335,31.78670724,131.59,131.56,0.1]
[1765063279537,4.83856869,131.57,131.56,0.82]
[1765063279742,31.20670724,131.59,131.56,0.82]
[1765063279942,4.83856869,131.57,131.56,0.82]
[1765063280122,4.83856869,131.57,131.56,0.1]
[1765063280326,4.83856869,131.57,131.56,0.75]
[1765063280628,12.43908552,131.57,131.56,0.75]
[1765063281021,16.308864,131.54,131.46,1.94842772]
[1765063281222,13.21856869,131.53,131.46,1.29842772]
[1765063281423,16.308864,131.44,131.42,3.9666438]
[1765063281646,16.308864,131.44,131.38,1.33718452]
[1765063281647,8.42,131.43,131.38,1.33718452]
[1765063281948,4.83856869,131.41,131.39,0.65]
[1765063282120,8.44,131.43,131.39,0.65]
[1765063282326,7.88537525,131.42,131.39,0.65]
[1765063282630,4.83856869,131.43,131.39,0.65]
[1765063282822,4.83856869,131.44,131.39,8.26085394]
[1765063283149,20.88464835,131.48,131.42,25.11880892]
[1765063283328,16.99604852,131.47,131.43,8.80994492]
[1765063283646,4.83856869,131.47,131.43,9.45994492]
[1765063283838,4.83856869,131.44,131.4,0.65]
[1765063284023,4.83856869,131.41,131.38,1.33718452]
[1765063284223,4.83856869,131.39,131.38,0.68718452]
[1765063284543,24.768864,131.42,131.38,0.68718452]
[1765063284544,27.6989506,131.4,131.38,0.68718452]
[1765063284746,11.62831193,131.41,131.39,0.65]
[1765063284952,16.308864,131.44,131.39,0.65]
[1765063284953,8.46,131.44,131.39,0.65]
[1765063285526,11.62831193,131.43,131.4,8.80994492]
[1765063285722,11.62831193,131.45,131.41,0.65]
[1765063286358,40.97296028,131.48,131.42,20.43825685]
[1765063286546,11.62831193,131.48,131.43,0.65]
[1765063286751,19.23437662,131.48,131.43,0.65]
[1765063286950,7.60606469,131.48,131.43,0.65]
[1765063287158,19.23437662,131.48,131.43,0.65]
[1765063287655,7.60606469,131.48,131.43,8.25857733]
[1765063287829,7.60606469,131.48,131.43,19.88688926]
[1765063288031,7.60606469,131.48,131.44,0.65]
[1765063288732,30.64134204,131.49,131.46,11.62831193]
[1765063288733,26.61817118,131.49,131.46,11.62831193]
[1765063288933,7.60514107,131.49,131.44,0.65]
[1765063289432,7.60514107,131.49,131.46,11.62831193]
[1765063289857,7.60514107,131.49,131.46,12.27831193]
[1765063290262,26.61799375,131.49,131.46,0.65]
[1765063290635,26.61799375,131.49,131.46,12.27831193]
[1765063290973,26.61799375,131.49,131.44,0.65]
[1765063291169,42.92685775,131.49,131.44,11.62831193]
[1765063291957,42.92685775,131.49,131.44,12.27831193]
[1765063292135,42.92685775,131.49,131.44,0.65]
[1765063292337,42.92685775,131.49,131.45,11.62831193]
[1765063292537,42.92685775,131.49,131.42,0.65]
[1765063292842,54.55516968,131.49,131.42,0.65]
[1765063293042,42.92685775,131.49,131.44,11.62831193]
[1765063293237,42.92685775,131.49,131.42,0.65]
[1765063293238,42.92685775,131.49,131.43,11.62831193]
[1765063293438,92.58087505,131.49,131.43,11.62831193]
[1765063293639,92.58087505,131.49,131.42,12.27831193]
[1765063294056,92.58087505,131.49,131.43,11.62831193]
[1765063294274,92.58087505,131.49,131.42,0.65]
[1765063294475,92.58087505,131.49,131.43,11.62831193]
[1765063294679,16.308864,131.46,131.39,0.65]
[1765063294972,20.08831193,131.45,131.39,0.65]
[1765063295142,8.46,131.45,131.4,11.62831193]
[1765063295348,8.46,131.45,131.42,11.62831193]
[1765063295537,8.46,131.45,131.39,0.65]
[1765063295538,8.46,131.45,131.41,11.62831193]
[1765063296148,8.46,131.48,131.42,0.65]
[1765063296472,8.46,131.48,131.45,11.62831193]
[1765063296774,7.60629801,131.47,131.44,11.62831193]
[1765063296963,7.60629801,131.47,131.45,11.62831193]
[1765063297159,7.60629801,131.47,131.4,39.11418712]
[1765063297160,23.91516201,131.47,131.4,0.65]
[1765063297463,23.91516201,131.47,131.4,12.27831193]
[1765063297464,11.62831193,131.46,131.4,12.27831193]
[1765063297771,8.46,131.45,131.42,11.62831193]
[1765063297975,8.46,131.45,131.43,11.62831193]
[1765063298269,26.62204304,131.47,131.44,11.62831193]
[1765063298453,26.62204304,131.47,131.45,0.65]
[1765063298454,7.60629801,131.47,131.45,0.65]
[1765063299669,8.48,131.48,131.45,0.65]
[1765063299670,7.60576772,131.48,131.45,0.65]
[1765063299978,7.60576772,131.48,131.45,12.27831193]
[1765063300577,7.60576772,131.48,131.47,11.62831193]
[1765063300871,7.60514107,131.49,131.46,12.27831193]
[1765063301967,7.60514107,131.49,131.47,12.27831193]
[1765063302342,7.60514107,131.49,131.47,0.65]
[1765063303167,19.0102851,131.51,131.47,0.65]
[1765063303168,26.61426958,131.51,131.48,11.62831193]
[1765063303575,26.61426958,131.51,131.48,12.27831193]
[1765063304251,26.61426958,131.51,131.48,11.62831193]
[1765063304465,26.61426958,131.51,131.49,0.65]
[1765063304668,26.61426958,131.51,131.48,12.27831193]
[1765063304871,26.61426958,131.51,131.48,0.65]
[1765063305369,7.60398448,131.51,131.49,0.65]
[1765063305545,7.60359018,131.52,131.5,11.62831193]
[1765063306058,7.60359018,131.52,131.5,12.27831193]
[1765063306771,35.31333195,131.55,131.5,12.27831193]
[1765063306977,7.60225026,131.54,131.52,11.62831193]
[1765063307164,26.60787592,131.54,131.51,12.27831193]
[1765063307568,26.60787592,131.54,131.51,0.65]
[1765063309153,26.60787592,131.54,131.49,12.27831193]
[1765063309478,26.60787592,131.54,131.5,0.65]
[1765063309880,26.60787592,131.54,131.5,12.27831193]
[1765063310389,26.60787592,131.54,131.51,0.69]
[1765063313078,26.60787592,131.54,131.49,11.62831193]
[1765063313266,26.60787592,131.54,131.5,0.72]
[1765063313872,26.60787592,131.54,131.5,12.34831193]
[1765063314482,26.60787592,131.54,131.51,0.72]
[1765063314653,7.60225026,131.54,131.53,11.62831193]
[1765063315060,7.60225026,131.54,131.53,0.72]
[1765063315797,26.60435542,131.56,131.53,12.34831193]
[1765063316082,26.60435542,131.56,131.53,0.72]
[1765063316388,26.60435542,131.56,131.54,0.72]
[1765063318263,38.23266735,131.56,131.51,0.72]
[1765063318465,8.46,131.55,131.51,0.72]
[1765063319191,8.46,131.55,131.51,12.34831193]
[1765063319561,8.46,131.55,131.52,0.72]
[1765063321284,7.60225026,131.54,131.52,0.72]
[1765063321976,7.60225026,131.54,131.52,12.34831193]
[1765063322390,7.60225026,131.54,131.53,0.72]
[1765063324174,7.60145526,131.56,131.53,12.34831193]
[1765063324387,7.60145526,131.56,131.54,0.72]
[1765063325067,7.60145526,131.56,131.54,12.34831193]
[1765063325263,7.5999392,131.58,131.55,11.62831193]
[1765063325505,7.5999392,131.58,131.55,12.34831193]
[1765063325683,7.5999392,131.58,131.56,12.34831193]
[1765063325874,7.5999392,131.58,131.57,0.72]
[1765063329620,111.89935178,131.6,131.57,8.1151527]
[1765063331808,111.89935178,131.6,131.58,0.72]